[Event "*** Titled Tuesday 3|2 Blitz (Early)"]
[Site "Chess.com"]
[Date "2017.01.03"]
[Round "3"]
[White "dretch"]
[Black "Tash_Boy"]
[Result "1-0"]
[WhiteElo "2590"]
[BlackElo "2458"]
[TimeControl "180+2"]
[EndTime "11:34:52 PST"]
[Termination "dretch won by checkmate"]

1. d4 {[%clk 0:03:02]} 1... Nf6 {[%clk 0:02:58.3]} 2. c4 {[%clk 0:03:03.1]} 2...
g6 {[%clk 0:02:58.2]} 3. Nc3 {[%clk 0:03:04.5]} 3... Bg7 {[%clk 0:02:59.7]} 4.
e4 {[%clk 0:03:05.7]} 4... d6 {[%clk 0:02:58.1]} 5. Nf3 {[%clk 0:03:07.2]} 5...
O-O {[%clk 0:02:59.1]} 6. h3 {[%clk 0:03:08]} 6... e5 {[%clk 0:02:57.5]} 7. dxe5
{[%clk 0:03:07.8]} 7... dxe5 {[%clk 0:02:57.8]} 8. Qxd8 {[%clk 0:03:09.7]} 8...
Rxd8 {[%clk 0:02:57.9]} 9. Bg5 {[%clk 0:03:11.6]} 9... Nbd7 {[%clk 0:02:51.3]}
10. Rd1 {[%clk 0:03:07.8]} 10... Rf8 {[%clk 0:02:49.1]} 11. Nd5 {[%clk
0:03:07.6]} 11... c6 {[%clk 0:02:47.7]} 12. Ne7+ {[%clk 0:03:08.1]} 12... Kh8
{[%clk 0:02:48.6]} 13. Be3 {[%clk 0:03:07.7]} 13... Re8 {[%clk 0:02:47.2]} 14.
Nxc8 {[%clk 0:03:08.5]} 14... Raxc8 {[%clk 0:02:48.2]} 15. c5 {[%clk 0:03:10]}
15... Bf8 {[%clk 0:02:43.5]} 16. b4 {[%clk 0:03:09.6]} 16... b6 {[%clk
0:02:42.1]} 17. Ng5 {[%clk 0:02:45.2]} 17... Kg7 {[%clk 0:02:33.5]} 18. Bc4
{[%clk 0:02:45.4]} 18... Re7 {[%clk 0:02:19]} 19. Bd3 {[%clk 0:02:15.6]} 19...
h6 {[%clk 0:02:18.5]} 20. Nf3 {[%clk 0:02:16.2]} 20... Ree8 {[%clk 0:02:18.9]}
21. Rc1 {[%clk 0:02:16.4]} 21... bxc5 {[%clk 0:02:12.8]} 22. bxc5 {[%clk
0:02:16.5]} 22... Rb8 {[%clk 0:02:13.4]} 23. O-O {[%clk 0:02:14]} 23... Rb2
{[%clk 0:02:10.6]} 24. Bc4 {[%clk 0:02:03.2]} 24... Nxe4 {[%clk 0:02:06.8]} 25.
Rfd1 {[%clk 0:02:02]} 25... Ndxc5 {[%clk 0:01:53.7]} 26. Nxe5 {[%clk 0:01:58.6]}
26... f6 {[%clk 0:01:34.9]} 27. Nxc6 {[%clk 0:01:54.5]} 27... g5 {[%clk
0:01:02.2]} 28. Nxa7 {[%clk 0:01:24.4]} 28... Na4 {[%clk 0:00:51.9]} 29. Bb5
{[%clk 0:01:22.1]} 29... Rb8 {[%clk 0:00:17.2]} 30. Bxa4 {[%clk 0:01:20]} 30...
Rxa2 {[%clk 0:00:18.8]} 31. Rd7+ {[%clk 0:01:18.8]} 31... Kg6 {[%clk 0:00:18.9]}
32. Bc2 {[%clk 0:01:18.6]} 32... f5 {[%clk 0:00:17.6]} 33. Bxe4 {[%clk
0:01:17.8]} 33... fxe4 {[%clk 0:00:18.4]} 34. Rc6+ {[%clk 0:01:18.5]} 34... Kf5
{[%clk 0:00:17]} 35. Rd5# {[%clk 0:01:13.4]} 1-0

[Event "*** Titled Tuesday 3|2 Blitz (Early)"]
[Site "Chess.com"]
[Date "2017.01.03"]
[Round "3"]
[White "bugsbunny444"]
[Black "underdogchss"]
[Result "1-0"]
[WhiteElo "2365"]
[BlackElo "2295"]
[TimeControl "180+2"]
[EndTime "11:34:54 PST"]
[Termination "bugsbunny444 won on time"]

1. Nf3 {[%clk 0:03:02]} 1... Nf6 {[%clk 0:03:00.5]} 2. c4 {[%clk 0:03:02.8]}
2... b6 {[%clk 0:03:01.1]} 3. g3 {[%clk 0:03:03.5]} 3... c5 {[%clk 0:03:01.4]}
4. Bg2 {[%clk 0:03:05]} 4... Bb7 {[%clk 0:02:49.6]} 5. O-O {[%clk 0:03:05.6]}
5... g6 {[%clk 0:02:50.7]} 6. b3 {[%clk 0:03:04.9]} 6... Bg7 {[%clk 0:02:51.1]}
7. Bb2 {[%clk 0:03:06.8]} 7... O-O {[%clk 0:02:52.4]} 8. Nc3 {[%clk 0:03:08.1]}
8... e6 {[%clk 0:02:51.8]} 9. d4 {[%clk 0:03:04.7]} 9... Ne4 {[%clk 0:02:47.2]}
10. Rc1 {[%clk 0:02:48.4]} 10... d6 {[%clk 0:02:30.2]} 11. Qd3 {[%clk
0:02:19.7]} 11... Nxc3 {[%clk 0:02:13.4]} 12. Bxc3 {[%clk 0:02:20.4]} 12... Qe7
{[%clk 0:02:07.7]} 13. Rfd1 {[%clk 0:02:11.9]} 13... cxd4 {[%clk 0:01:54.8]} 14.
Bxd4 {[%clk 0:02:02.8]} 14... e5 {[%clk 0:01:48.7]} 15. Bc3 {[%clk 0:01:50.1]}
15... e4 {[%clk 0:01:44.4]} 16. Qe3 {[%clk 0:01:51.2]} 16... Bxc3 {[%clk
0:01:26.9]} 17. Rxc3 {[%clk 0:01:51]} 17... Na6 {[%clk 0:01:06.9]} 18. Ng5
{[%clk 0:01:48.1]} 18... f5 {[%clk 0:01:02.2]} 19. h4 {[%clk 0:01:47.2]} 19...
Rac8 {[%clk 0:00:58.5]} 20. Rd4 {[%clk 0:01:28.4]} 20... Qe5 {[%clk 0:00:48.6]}
21. Rc2 {[%clk 0:01:22]} 21... d5 {[%clk 0:00:41.3]} 22. Rcd2 {[%clk 0:00:41.1]}
22... f4 {[%clk 0:00:23.3]} 23. gxf4 {[%clk 0:00:33.6]} 23... Rxf4 {[%clk
0:00:24.4]} 24. cxd5 {[%clk 0:00:28]} 24... Rxh4 {[%clk 0:00:19.4]} 25. Nf3
{[%clk 0:00:25.8]} 25... Rc1+ {[%clk 0:00:11.3]} 26. Rd1 {[%clk 0:00:23.4]}
26... Rxd1+ {[%clk 0:00:12.5]} 27. Rxd1 {[%clk 0:00:24.6]} 1-0

[Event "*** Titled Tuesday 3|2 Blitz (Early)"]
[Site "Chess.com"]
[Date "2017.01.03"]
[Round "3"]
[White "pedromartinez91"]
[Black "Fablibi"]
[Result "0-1"]
[WhiteElo "2321"]
[BlackElo "2500"]
[TimeControl "180+2"]
[EndTime "11:35:01 PST"]
[Termination "Fablibi won by resignation"]

1. e4 {[%clk 0:03:02]} 1... e6 {[%clk 0:03:00.3]} 2. d4 {[%clk 0:02:57.8]} 2...
d5 {[%clk 0:03:02.2]} 3. Nd2 {[%clk 0:02:59.3]} 3... a6 {[%clk 0:03:01.4]} 4.
Ngf3 {[%clk 0:02:59.1]} 4... Nf6 {[%clk 0:03:01.8]} 5. Bd3 {[%clk 0:02:55.6]}
5... c5 {[%clk 0:03:01.9]} 6. exd5 {[%clk 0:02:53.8]} 6... Qxd5 {[%clk
0:02:59.3]} 7. dxc5 {[%clk 0:02:33.2]} 7... Bxc5 {[%clk 0:03:01.2]} 8. O-O
{[%clk 0:02:33.8]} 8... O-O {[%clk 0:03:00.7]} 9. Qe2 {[%clk 0:02:34.1]} 9...
Nc6 {[%clk 0:02:58.9]} 10. Ne4 {[%clk 0:02:33.6]} 10... Nxe4 {[%clk 0:02:51]}
11. Qxe4 {[%clk 0:02:28.2]} 11... Qxe4 {[%clk 0:02:50.3]} 12. Bxe4 {[%clk
0:02:28.9]} 12... Bd7 {[%clk 0:02:46.1]} 13. Rd1 {[%clk 0:02:27.6]} 13... Rfd8
{[%clk 0:02:46.3]} 14. Be3 {[%clk 0:02:22.3]} 14... Bxe3 {[%clk 0:02:40.9]} 15.
fxe3 {[%clk 0:02:22.8]} 15... Be8 {[%clk 0:02:40.1]} 16. Nd4 {[%clk 0:02:13.1]}
16... Nxd4 {[%clk 0:02:33.7]} 17. exd4 {[%clk 0:02:13.3]} 17... Bc6 {[%clk
0:02:34.3]} 18. Bxc6 {[%clk 0:02:05]} 18... bxc6 {[%clk 0:02:36.2]} 19. Kf2
{[%clk 0:02:06]} 19... a5 {[%clk 0:02:28.4]} 20. Ke3 {[%clk 0:02:01.1]} 20...
Rdb8 {[%clk 0:02:28.6]} 21. Rab1 {[%clk 0:01:56]} 21... Kf8 {[%clk 0:02:29.1]}
22. Rd3 {[%clk 0:01:56.4]} 22... Ke7 {[%clk 0:02:29.4]} 23. Rb3 {[%clk
0:01:54.2]} 23... a4 {[%clk 0:02:13.1]} 24. Rxb8 {[%clk 0:01:53.5]} 24... Rxb8
{[%clk 0:02:04.3]} 25. b4 {[%clk 0:01:54.3]} 25... axb3 {[%clk 0:02:00.4]} 26.
cxb3 {[%clk 0:01:29.8]} 26... Kd6 {[%clk 0:01:57.5]} 27. Rc1 {[%clk 0:01:27.8]}
27... Rb5 {[%clk 0:01:51.4]} 28. Rf1 {[%clk 0:01:23.9]} 28... f5 {[%clk
0:01:51.1]} 29. Rc1 {[%clk 0:01:17.6]} 29... Kd5 {[%clk 0:01:38.3]} 30. Rc4
{[%clk 0:01:17.9]} 30... Ra5 {[%clk 0:01:20.2]} 31. Rc5+ {[%clk 0:01:01.4]}
31... Rxc5 {[%clk 0:01:19]} 32. dxc5 {[%clk 0:01:02.9]} 32... Kxc5 {[%clk
0:01:20.9]} 33. Kf4 {[%clk 0:01:03.5]} 33... Kd4 {[%clk 0:01:11.1]} 34. a4
{[%clk 0:01:02.1]} 34... g6 {[%clk 0:01:12.3]} 35. Kg5 {[%clk 0:00:22.4]} 35...
e5 {[%clk 0:01:12.6]} 36. h4 {[%clk 0:00:22.7]} 36... e4 {[%clk 0:01:12.7]} 37.
Kh6 {[%clk 0:00:20.4]} 37... e3 {[%clk 0:01:13.1]} 38. Kxh7 {[%clk 0:00:21.7]}
38... e2 {[%clk 0:01:14.2]} 39. Kxg6 {[%clk 0:00:22.9]} 39... e1=Q {[%clk
0:01:15.6]} 40. h5 {[%clk 0:00:24.5]} 40... Qg3+ {[%clk 0:01:08.5]} 0-1

[Event "*** Titled Tuesday 3|2 Blitz (Early)"]
[Site "Chess.com"]
[Date "2017.01.03"]
[Round "3"]
[White "visa"]
[Black "MFBerna"]
[Result "0-1"]
[WhiteElo "2161"]
[BlackElo "2206"]
[TimeControl "180+2"]
[EndTime "11:35:13 PST"]
[Termination "MFBerna won by resignation"]

1. e4 {[%clk 0:03:02]} 1... e5 {[%clk 0:02:56.5]} 2. d4 {[%clk 0:03:01.1]} 2...
exd4 {[%clk 0:02:57.2]} 3. Qxd4 {[%clk 0:02:59.4]} 3... Nc6 {[%clk 0:02:57.6]}
4. Qe3 {[%clk 0:03:00.5]} 4... Nf6 {[%clk 0:02:58.3]} 5. Bd2 {[%clk 0:03:00.8]}
5... Be7 {[%clk 0:02:49.1]} 6. Nc3 {[%clk 0:03:01.1]} 6... d5 {[%clk 0:02:42.3]}
7. exd5 {[%clk 0:02:50.4]} 7... Nxd5 {[%clk 0:02:41.4]} 8. Qg3 {[%clk
0:02:35.2]} 8... Be6 {[%clk 0:01:44.5]} 9. Nf3 {[%clk 0:02:19.4]} 9... Bf6
{[%clk 0:01:29.1]} 10. O-O-O {[%clk 0:01:57.1]} 10... Nxc3 {[%clk 0:00:34]} 11.
Bxc3 {[%clk 0:01:56.2]} 11... Qe7 {[%clk 0:00:34.5]} 12. Bxf6 {[%clk 0:01:45.7]}
12... Qxf6 {[%clk 0:00:29.7]} 13. Qxc7 {[%clk 0:01:35.8]} 13... O-O {[%clk
0:00:29.9]} 14. Bd3 {[%clk 0:00:42.6]} 14... Rfc8 {[%clk 0:00:29.4]} 15. Qg3
{[%clk 0:00:37.4]} 15... Nb4 {[%clk 0:00:29]} 16. Qe5 {[%clk 0:00:23.1]} 16...
Qh6+ {[%clk 0:00:17.2]} 17. Qg5 {[%clk 0:00:18.7]} 17... Qxg5+ {[%clk
0:00:07.2]} 18. Nxg5 {[%clk 0:00:19.3]} 18... Bxa2 {[%clk 0:00:03.6]} 19. Bxh7+
{[%clk 0:00:17.5]} 19... Kf8 {[%clk 0:00:04.8]} 20. Bf5 {[%clk 0:00:18.5]} 20...
Rc7 {[%clk 0:00:04.3]} 21. c3 {[%clk 0:00:16.9]} 21... Nc6 {[%clk 0:00:04.4]}
22. Rd6 {[%clk 0:00:14.9]} 22... Ne5 {[%clk 0:00:04.7]} 23. Rhd1 {[%clk
0:00:12.9]} 23... Bb3 {[%clk 0:00:04.9]} 24. Re1 {[%clk 0:00:10.8]} 24... f6
{[%clk 0:00:04.7]} 25. Ne6+ {[%clk 0:00:06.5]} 25... Bxe6 {[%clk 0:00:05.1]} 26.
Bxe6 {[%clk 0:00:05.9]} 26... Ke7 {[%clk 0:00:05.6]} 27. Bb3 {[%clk 0:00:06.7]}
27... Kxd6 {[%clk 0:00:06.1]} 28. f4 {[%clk 0:00:08.1]} 28... Nd3+ {[%clk
0:00:07]} 29. Kd2 {[%clk 0:00:08.7]} 29... Nxe1 {[%clk 0:00:08.1]} 30. Kxe1
{[%clk 0:00:10.3]} 30... Re8+ {[%clk 0:00:09.2]} 31. Kf2 {[%clk 0:00:11.7]}
31... Re4 {[%clk 0:00:09.6]} 32. g3 {[%clk 0:00:13.6]} 32... Rce7 {[%clk
0:00:10.5]} 0-1

[Event "*** Titled Tuesday 3|2 Blitz (Early)"]
[Site "Chess.com"]
[Date "2017.01.03"]
[Round "3"]
[White "Rickstereo"]
[Black "Kawhi_Leonard2"]
[Result "1-0"]
[WhiteElo "2174"]
[BlackElo "2197"]
[TimeControl "180+2"]
[EndTime "11:35:20 PST"]
[Termination "Rickstereo won on time"]

1. c4 {[%clk 0:02:58.5]} 1... Nf6 {[%clk 0:03:00.1]} 2. g3 {[%clk 0:02:55.6]}
2... e6 {[%clk 0:02:59]} 3. Bg2 {[%clk 0:02:55.9]} 3... d5 {[%clk 0:03:00.1]} 4.
Nf3 {[%clk 0:02:57.3]} 4... Be7 {[%clk 0:03:01.6]} 5. O-O {[%clk 0:02:57.9]}
5... O-O {[%clk 0:03:03.2]} 6. b3 {[%clk 0:02:59]} 6... c5 {[%clk 0:03:03.3]} 7.
e3 {[%clk 0:02:54.2]} 7... Nc6 {[%clk 0:03:04.5]} 8. Bb2 {[%clk 0:02:55.3]} 8...
b6 {[%clk 0:03:05.6]} 9. Qe2 {[%clk 0:02:56.2]} 9... Bb7 {[%clk 0:03:06.4]} 10.
Rd1 {[%clk 0:02:57]} 10... Qc7 {[%clk 0:03:05.7]} 11. Nc3 {[%clk 0:02:57.9]}
11... a6 {[%clk 0:03:05.1]} 12. Rac1 {[%clk 0:02:57.5]} 12... Rac8 {[%clk
0:03:03.3]} 13. d4 {[%clk 0:02:58.3]} 13... cxd4 {[%clk 0:02:57.5]} 14. exd4
{[%clk 0:02:58.6]} 14... dxc4 {[%clk 0:02:58.4]} 15. bxc4 {[%clk 0:02:59]} 15...
Na5 {[%clk 0:02:49.1]} 16. Na4 {[%clk 0:01:45.3]} 16... Bc6 {[%clk 0:02:26]} 17.
Nc3 {[%clk 0:01:36.8]} 17... Bxf3 {[%clk 0:02:06.8]} 18. Qxf3 {[%clk 0:01:37.1]}
18... Nxc4 {[%clk 0:02:02.9]} 19. Ba1 {[%clk 0:01:28.8]} 19... b5 {[%clk
0:02:01]} 20. d5 {[%clk 0:01:29.3]} 20... exd5 {[%clk 0:01:53.4]} 21. Nxd5
{[%clk 0:01:28.4]} 21... Nxd5 {[%clk 0:01:53.2]} 22. Qxd5 {[%clk 0:01:04.1]}
22... Rfd8 {[%clk 0:01:47.7]} 23. Qb7 {[%clk 0:00:57.4]} 23... Ba3 {[%clk
0:00:54.6]} 24. Rxd8+ {[%clk 0:00:42.4]} 24... Qxd8 {[%clk 0:00:53.5]} 25. Re1
{[%clk 0:00:30.3]} 25... Rb8 {[%clk 0:00:24]} 26. Qxa6 {[%clk 0:00:25.4]} 26...
Qd2 {[%clk 0:00:24.5]} 27. Rf1 {[%clk 0:00:21.2]} 27... Bc5 {[%clk 0:00:20.9]}
28. Qc6 {[%clk 0:00:18.3]} 28... Bd4 {[%clk 0:00:06.6]} 29. Qc7 {[%clk
0:00:15.6]} 29... Re8 {[%clk 0:00:04.7]} 30. Bxd4 {[%clk 0:00:15.5]} 30... Qxd4
{[%clk 0:00:04.7]} 31. Bc6 {[%clk 0:00:15.2]} 1-0

[Event "*** Titled Tuesday 3|2 Blitz (Early)"]
[Site "Chess.com"]
[Date "2017.01.03"]
[Round "3"]
[White "Wolverine_master"]
[Black "ABDELAZEEZ-M"]
[Result "0-1"]
[WhiteElo "2011"]
[BlackElo "2033"]
[TimeControl "180+2"]
[EndTime "11:35:25 PST"]
[Termination "ABDELAZEEZ-M won by resignation"]

1. e4 {[%clk 0:03:02]} 1... c5 {[%clk 0:02:59.2]} 2. Nf3 {[%clk 0:03:02.6]} 2...
Nc6 {[%clk 0:02:59.9]} 3. d4 {[%clk 0:03:04.1]} 3... cxd4 {[%clk 0:03:00.9]} 4.
Nxd4 {[%clk 0:03:05.7]} 4... g6 {[%clk 0:03:02.3]} 5. Nc3 {[%clk 0:03:06]} 5...
Bg7 {[%clk 0:03:02.5]} 6. Nde2 {[%clk 0:03:07.1]} 6... d6 {[%clk 0:03:01.1]} 7.
g3 {[%clk 0:03:07.9]} 7... Nf6 {[%clk 0:02:57.2]} 8. Bg2 {[%clk 0:03:09.2]} 8...
O-O {[%clk 0:02:57.7]} 9. O-O {[%clk 0:03:10]} 9... Bd7 {[%clk 0:02:54.6]} 10.
h3 {[%clk 0:03:07]} 10... Rc8 {[%clk 0:02:54.4]} 11. Be3 {[%clk 0:03:06.1]}
11... a6 {[%clk 0:02:52.6]} 12. a4 {[%clk 0:03:05.8]} 12... Nb4 {[%clk
0:02:48.4]} 13. Rc1 {[%clk 0:02:32.7]} 13... Bc6 {[%clk 0:02:48.2]} 14. b3
{[%clk 0:02:18.3]} 14... d5 {[%clk 0:02:34.9]} 15. Bc5 {[%clk 0:01:48.6]} 15...
a5 {[%clk 0:01:47.5]} 16. Bxb4 {[%clk 0:01:44.7]} 16... axb4 {[%clk 0:01:48.3]}
17. Nxd5 {[%clk 0:01:45.7]} 17... Bxd5 {[%clk 0:01:49.2]} 18. exd5 {[%clk
0:01:46.4]} 18... Rc5 {[%clk 0:01:46.1]} 19. Qd4 {[%clk 0:01:42.4]} 19... Qb6
{[%clk 0:01:36.3]} 20. c3 {[%clk 0:01:19.3]} 20... Nxd5 {[%clk 0:01:35.7]} 21.
Qd3 {[%clk 0:00:59.7]} 21... Nxc3 {[%clk 0:01:34.9]} 22. Qe3 {[%clk 0:00:29.9]}
22... Nxe2+ {[%clk 0:01:31.8]} 23. Qxe2 {[%clk 0:00:29.7]} 23... Rxc1 {[%clk
0:01:21]} 24. Rxc1 {[%clk 0:00:31.6]} 24... e6 {[%clk 0:01:20.3]} 25. Qe4 {[%clk
0:00:26.2]} 25... Bd4 {[%clk 0:01:17.5]} 26. Qxb7 {[%clk 0:00:23.8]} 26... Bxf2+
{[%clk 0:01:17.6]} 27. Kh2 {[%clk 0:00:25]} 27... Qe3 {[%clk 0:01:17.2]} 28. Rf1
{[%clk 0:00:14.3]} 28... Bxg3+ {[%clk 0:01:15]} 29. Kh1 {[%clk 0:00:14.7]} 29...
Be5 {[%clk 0:01:15.8]} 30. Qf3 {[%clk 0:00:10.2]} 30... Qxf3 {[%clk 0:01:07.1]}
31. Rxf3 {[%clk 0:00:10.1]} 31... Rc8 {[%clk 0:01:08.3]} 32. Rd3 {[%clk
0:00:09.1]} 32... Rc1+ {[%clk 0:01:08.6]} 0-1

[Event "*** Titled Tuesday 3|2 Blitz (Early)"]
[Site "Chess.com"]
[Date "2017.01.03"]
[Round "3"]
[White "Spas_Kozhuharov"]
[Black "Chopper1905"]
[Result "0-1"]
[WhiteElo "2462"]
[BlackElo "2605"]
[TimeControl "180+2"]
[EndTime "11:35:42 PST"]
[Termination "Chopper1905 won by resignation"]

1. d4 {[%clk 0:03:01.9]} 1... d5 {[%clk 0:03:00.5]} 2. c4 {[%clk 0:03:01.5]}
2... c6 {[%clk 0:03:01.2]} 3. cxd5 {[%clk 0:03:01.7]} 3... Qxd5 {[%clk
0:03:01.2]} 4. Nc3 {[%clk 0:03:02.3]} 4... Qd8 {[%clk 0:03:00.1]} 5. e4 {[%clk
0:02:58.7]} 5... g6 {[%clk 0:02:59.9]} 6. Bc4 {[%clk 0:02:53.1]} 6... Bg7 {[%clk
0:02:58.9]} 7. Be3 {[%clk 0:02:52.9]} 7... Nf6 {[%clk 0:02:59]} 8. h3 {[%clk
0:02:51.9]} 8... b5 {[%clk 0:02:59.5]} 9. Bd3 {[%clk 0:02:45.4]} 9... O-O {[%clk
0:02:56.7]} 10. Nf3 {[%clk 0:02:45.7]} 10... a6 {[%clk 0:02:58.1]} 11. O-O
{[%clk 0:02:44.8]} 11... Nbd7 {[%clk 0:02:56.8]} 12. Qd2 {[%clk 0:02:38.3]}
12... Bb7 {[%clk 0:02:55.8]} 13. Rac1 {[%clk 0:02:34.5]} 13... Qb8 {[%clk
0:02:47.1]} 14. e5 {[%clk 0:02:30.7]} 14... Ne8 {[%clk 0:02:46.3]} 15. Bh6
{[%clk 0:02:30.8]} 15... c5 {[%clk 0:02:42.4]} 16. Bxg7 {[%clk 0:02:08.6]} 16...
Nxg7 {[%clk 0:02:41.8]} 17. Be4 {[%clk 0:02:08.6]} 17... cxd4 {[%clk 0:02:30.9]}
18. Qxd4 {[%clk 0:02:05.9]} 18... Rd8 {[%clk 0:02:31.8]} 19. Rfd1 {[%clk
0:02:02.2]} 19... Ne6 {[%clk 0:02:31.2]} 20. Qe3 {[%clk 0:02:02.5]} 20... Bxe4
{[%clk 0:02:08.3]} 21. Qxe4 {[%clk 0:01:58.6]} 21... Nb6 {[%clk 0:02:06.2]} 22.
Rxd8+ {[%clk 0:01:45.4]} 22... Qxd8 {[%clk 0:02:08.1]} 23. Rd1 {[%clk
0:01:45.1]} 23... Qc7 {[%clk 0:02:07.3]} 24. g3 {[%clk 0:01:38.4]} 24... Rc8
{[%clk 0:02:05.2]} 25. Kg2 {[%clk 0:01:35.1]} 25... Qc6 {[%clk 0:01:58.7]} 26.
h4 {[%clk 0:01:23.6]} 26... Qxe4 {[%clk 0:01:56.8]} 27. Nxe4 {[%clk 0:01:25.5]}
27... Rc2 {[%clk 0:01:37]} 28. Rd2 {[%clk 0:01:25.8]} 28... Rc4 {[%clk 0:01:38]}
29. Neg5 {[%clk 0:01:22]} 29... Nxg5 {[%clk 0:01:28.4]} 30. hxg5 {[%clk
0:01:23.9]} 30... Rc8 {[%clk 0:01:28.7]} 31. b3 {[%clk 0:01:23.8]} 31... Kf8
{[%clk 0:01:29.5]} 32. Nd4 {[%clk 0:01:19]} 32... Ke8 {[%clk 0:01:27.7]} 33. e6
{[%clk 0:01:18.4]} 33... f6 {[%clk 0:01:25.7]} 34. gxf6 {[%clk 0:01:16.4]} 34...
exf6 {[%clk 0:01:27.6]} 35. f4 {[%clk 0:01:17.4]} 35... f5 {[%clk 0:01:24.5]}
36. Nf3 {[%clk 0:01:11.7]} 36... Ke7 {[%clk 0:01:22.5]} 37. Ng5 {[%clk
0:01:12.1]} 37... h6 {[%clk 0:01:21.3]} 38. Nf7 {[%clk 0:00:58.6]} 38... Kxe6
{[%clk 0:01:22.3]} 39. Ne5 {[%clk 0:00:58.4]} 39... g5 {[%clk 0:01:19]} 40. Kh3
{[%clk 0:00:41.7]} 40... Nd5 {[%clk 0:01:14.3]} 41. Nd3 {[%clk 0:00:30.8]} 41...
Rc3 {[%clk 0:01:08.2]} 42. Kh2 {[%clk 0:00:26.6]} 42... a5 {[%clk 0:01:04.1]}
43. Kg1 {[%clk 0:00:26.2]} 43... b4 {[%clk 0:01:04.6]} 44. Kf2 {[%clk
0:00:27.1]} 44... Nf6 {[%clk 0:01:04.7]} 0-1

[Event "*** Titled Tuesday 3|2 Blitz (Early)"]
[Site "Chess.com"]
[Date "2017.01.03"]
[Round "3"]
[White "Makalexa"]
[Black "Hamisandwich"]
[Result "0-1"]
[WhiteElo "2175"]
[BlackElo "2373"]
[TimeControl "180+2"]
[EndTime "11:36:07 PST"]
[Termination "Hamisandwich won by checkmate"]

1. e4 {[%clk 0:03:02]} 1... c6 {[%clk 0:02:59.8]} 2. d4 {[%clk 0:03:00.9]} 2...
d5 {[%clk 0:03:01.7]} 3. Nc3 {[%clk 0:03:02.1]} 3... a6 {[%clk 0:03:02.6]} 4. e5
{[%clk 0:03:00.9]} 4... Bf5 {[%clk 0:03:00.5]} 5. g4 {[%clk 0:03:01.3]} 5... Bd7
{[%clk 0:02:59.4]} 6. Bd3 {[%clk 0:02:58.1]} 6... Qc8 {[%clk 0:02:57.3]} 7. h3
{[%clk 0:02:49.5]} 7... h5 {[%clk 0:02:58.4]} 8. gxh5 {[%clk 0:02:47.9]} 8...
Bf5 {[%clk 0:02:59.8]} 9. Qf3 {[%clk 0:02:44.3]} 9... Bxd3 {[%clk 0:03:00.6]}
10. cxd3 {[%clk 0:02:44.3]} 10... Nh6 {[%clk 0:02:57.6]} 11. Bxh6 {[%clk
0:02:43.2]} 11... Rxh6 {[%clk 0:02:53.4]} 12. Nge2 {[%clk 0:02:41.3]} 12... e6
{[%clk 0:02:51.8]} 13. Rg1 {[%clk 0:02:38.9]} 13... c5 {[%clk 0:02:46]} 14.
O-O-O {[%clk 0:02:29.3]} 14... c4 {[%clk 0:02:35.1]} 15. Kb1 {[%clk 0:02:24.8]}
15... b5 {[%clk 0:02:24.3]} 16. dxc4 {[%clk 0:02:03]} 16... bxc4 {[%clk
0:02:26.2]} 17. Nf4 {[%clk 0:01:56.7]} 17... Nc6 {[%clk 0:02:23.1]} 18. Ka1
{[%clk 0:01:41.2]} 18... Rb8 {[%clk 0:02:23.3]} 19. Rd2 {[%clk 0:01:42.2]} 19...
Qb7 {[%clk 0:02:12.1]} 20. Rb1 {[%clk 0:01:40.4]} 20... Bb4 {[%clk 0:01:43.1]}
21. Qd1 {[%clk 0:01:35.3]} 21... Qb6 {[%clk 0:01:27.2]} 22. Nfe2 {[%clk
0:01:35.2]} 22... Rxh5 {[%clk 0:01:24.6]} 23. Qg1 {[%clk 0:01:07.1]} 23... Kf8
{[%clk 0:01:08.4]} 24. Qg4 {[%clk 0:01:04.7]} 24... Rf5 {[%clk 0:01:08.4]} 25.
Rg1 {[%clk 0:00:47.3]} 25... g6 {[%clk 0:01:03.3]} 26. f3 {[%clk 0:00:44.7]}
26... Qa5 {[%clk 0:00:51.6]} 27. h4 {[%clk 0:00:33.2]} 27... Ne7 {[%clk
0:00:43]} 28. Qg2 {[%clk 0:00:26.6]} 28... Rh5 {[%clk 0:00:42]} 29. Qf2 {[%clk
0:00:25.6]} 29... Nf5 {[%clk 0:00:42.8]} 30. Rh1 {[%clk 0:00:21]} 30... Ke7
{[%clk 0:00:39.4]} 31. Rc2 {[%clk 0:00:21.5]} 31... Rbh8 {[%clk 0:00:38]} 32.
Nf4 {[%clk 0:00:20.6]} 32... Rxh4 {[%clk 0:00:38.7]} 33. Rxh4 {[%clk 0:00:21]}
33... Rxh4 {[%clk 0:00:40.6]} 34. a3 {[%clk 0:00:22]} 34... Bxc3 {[%clk
0:00:32.5]} 35. Nxg6+ {[%clk 0:00:17.4]} 35... fxg6 {[%clk 0:00:30.9]} 36. Rxc3
{[%clk 0:00:18.8]} 36... Rxd4 {[%clk 0:00:25.6]} 37. Ka2 {[%clk 0:00:19.5]}
37... Rd3 {[%clk 0:00:18.5]} 38. Qa7+ {[%clk 0:00:18.4]} 38... Kf8 {[%clk
0:00:19.3]} 39. Rc2 {[%clk 0:00:18.7]} 39... Qb5 {[%clk 0:00:19.5]} 40. Qa8+
{[%clk 0:00:18.8]} 40... Kf7 {[%clk 0:00:20]} 41. Qa7+ {[%clk 0:00:19.7]} 41...
Ne7 {[%clk 0:00:21.5]} 42. Rc1 {[%clk 0:00:18.5]} 42... Qb3+ {[%clk 0:00:22.4]}
43. Ka1 {[%clk 0:00:19.1]} 43... c3 {[%clk 0:00:20.9]} 44. Qf2 {[%clk
0:00:15.4]} 44... Rd2 {[%clk 0:00:20]} 45. Rxc3 {[%clk 0:00:07.6]} 45... Qxb2#
{[%clk 0:00:20.9]} 0-1